fUSD/lending_fUSD_20260419
["ID","MTS","AMOUNT","RATE_DAILY","PERIOD"]
[420824938,1776591041731,-500.0,0.00011999,2]
[420824939,1776591041745,-500.09999999,0.00011999,3]
[420824940,1776591041761,-500.0,0.00011999,6]
[420824941,1776591041776,-500.0,0.00011999,7]
[420824942,1776591041791,-500.0,0.00011999,8]
[420824943,1776591041806,-500.0,0.00011999,9]
[420824944,1776591041821,-500.0,0.00011999,10]
[420824945,1776591041836,-500.0,0.00011999,11]
[420824946,1776591041851,-500.0,0.00011999,12]
[420824947,1776591041866,-1093.83820703,0.00011999,3]
[420824948,1776591041881,-1093.83820704,0.00011999,3]
[420824949,1776591041896,-1093.83820704,0.00011999,3]
[420824950,1776591041911,-1093.83820704,0.00011999,3]
[420824951,1776591041926,-929.0,0.00012,5]
[420824952,1776591041941,-2711.35958543,0.00012,2]
[420824953,1776591042043,-316.80384,0.0001199,2]
[420824954,1776591042060,-501.18911094,0.0001199,2]
[420824955,1776591042073,-417.21071327,0.00012,2]
[420824956,1776591042212,-700.0,0.00012,2]
[420824962,1776591043502,-217.00032421,0.00010958,2]
[420824964,1776591043530,-5480.02124498,0.00012,2]
[420824965,1776591043542,-150001.99999994,0.00012,2]
[420824966,1776591043915,-2311.65202355,0.00010305,2]
[420824967,1776591043927,-199.68197645,0.00010305,2]
[420824968,1776591043936,-269.94314911,0.00011848,2]
[420824976,1776591046024,-39.76668385,0.00011848,2]
[420824977,1776591046033,-500.0,0.00011848,2]
[420824978,1776591046042,-142.95036713,0.00011848,2]
[420824979,1776591046199,-29.63552846,0.00011848,2]
[420824980,1776591046209,-500.0,0.00011848,2]
[420824981,1776591046220,-500.0,0.00011848,2]
[420824982,1776591046229,-85.41667154,0.00011848,2]
[420824983,1776591046240,-414.58332846,0.00011848,2]
[420824984,1776591046251,-500.0,0.00011848,2]
[420824985,1776591046260,-542.08798249,0.00011848,2]
[420824986,1776591046270,-200.0564045,0.00011848,2]
[420824987,1776591046279,-500.0,0.00011848,2]
[420824988,1776591046289,-500.0,0.00011848,2]
[420824989,1776591046298,-243.27228455,0.00011848,2]
[420824990,1776591046314,-364.36954213,0.00011848,2]
[420824991,1776591046324,-130.25610779,0.00011848,2]
[420824992,1776591046335,-369.74389221,0.00011848,2]
[420824993,1776591046344,-333.11081003,0.00012,2]
[420824994,1776591046355,-1213.16,0.00012,2]
[420824996,1776591046421,-10935.78174382,0.00012,2]
[420825194,1776591106538,165.4,0.00030411,120]
[420825204,1776591182436,460.46515429,0.00032877,120]
[420825205,1776591204780,800.0000099,0.00032877,120]
[420825206,1776591216027,261.49,0.0003269,120]
[420825208,1776591249469,855.7,0.00032603,120]
[420825209,1776591253000,718.017356,0.00032603,120]
[420825210,1776591276869,150.0,0.00032877,120]
[420825211,1776591374761,164.5,7.5e-05,2]
[420825212,1776591375927,159.61159684,0.00032877,120]
[420825213,1776591406823,2013.95,0.00032876,120]
[420825214,1776591973916,1100.56645393,0.00032876,120]
[420825216,1776592201455,1000.0,0.00032,120]
[420825217,1776592223175,1000.0,0.00031,120]
[420825257,1776592232330,-260.0,9.863e-05,2]
[420825258,1776592232341,-300.0,9.999e-05,2]
[420825259,1776592232350,-151.0,0.0001,2]
[420825260,1776592232360,-224.33095253,0.0001,2]
[420825261,1776592232370,-200.0,0.0001,2]
[420825262,1776592232379,-151.0,0.0001,2]
[420825263,1776592232389,-151.0,0.0001,2]
[420825264,1776592232398,-151.0,0.0001,2]
[420825265,1776592232407,-151.0,0.0001,2]
[420825267,1776592232417,-151.0,0.0001,2]
[420825269,1776592232426,-151.0,0.0001,2]
[420825270,1776592232435,-151.37857925,0.0001,2]
[420825271,1776592232444,-151.0,0.0001,2]
[420825272,1776592232454,-151.0,0.0001,2]
[420825273,1776592232464,-151.0,0.0001,2]
[420825274,1776592232473,-151.0,0.0001,2]
[420825275,1776592232483,-151.0,0.0001,2]
[420825276,1776592232494,-151.0,0.0001,2]
[420825277,1776592232505,-151.0,0.0001,2]
[420825278,1776592232514,-151.0,0.0001,2]
[420825279,1776592232524,-151.0,0.0001,2]
[420825280,1776592232533,-151.0,0.0001,2]
[420825281,1776592232543,-151.0,0.0001,2]
[420825282,1776592232552,-151.0,0.0001,2]
[420825283,1776592232562,-151.0,0.0001,2]
[420825284,1776592232571,-154.96599412,0.0001,2]
[420825285,1776592232580,-935.34962986,0.00010005,2]
[420825286,1776592232592,-7587.03091328,0.00010005,2]
[420825394,1776592240633,-151.0,0.00010101,2]
[420825395,1776592240643,-332.164,0.00010435,2]
[420825396,1776592240652,-416.0,0.00010435,2]
[420825397,1776592240661,-3779.0,0.00010435,2]
[420825398,1776592240671,-879.45730061,0.000105,2]
[420825399,1776592240691,-120.54269939,0.000105,2]
[420825400,1776592240702,-1127.33,0.00010576,2]
[420825401,1776592240712,-200.0,0.00010638,2]
[420825402,1776592240723,-2281.01,0.00010742,2]
[420825403,1776592240733,-530.1197075,0.00010831,2]
[420825404,1776592240743,-166.7115518,0.00010849,2]
[420825405,1776592240752,-186.276,0.00010873,2]
[420825406,1776592240762,-1864.054,0.00010873,2]
[420825407,1776592240770,-1189.71,0.00010913,2]
[420825408,1776592240780,-215.0,0.00010958,2]
[420825409,1776592240790,-3240.0,0.00010959,2]
[420825410,1776592240799,-150.0,0.00010959,2]
[420825411,1776592240809,-33222.4135803,0.00011099,2]
[420825412,1776592240819,-526.73307487,0.00011139,2]
[420825413,1776592240828,-2460.61,0.000114,2]
[420825414,1776592240838,-1718.41,0.000114,2]
[420825415,1776592240847,-1044.75,0.000114,2]
[420825416,1776592240857,-1044.75,0.000114,2]
[420825417,1776592240867,-1044.75,0.000114,2]
[420825418,1776592240877,-180.02186233,0.00011505,2]
[420825419,1776592240887,-200.0,0.000116,4]
[420825420,1776592240898,-400.0,0.000117,4]
[420825421,1776592240908,-161.54,0.000117,2]
[420825422,1776592240917,-600.0,0.000118,4]
[420825423,1776592240927,-1080.41373379,0.00011848,2]
[420825424,1776592240938,-500.0,0.00011899,2]
[420825425,1776592240947,-475.71162804,0.00011899,2]
[420825426,1776592240955,-5000.0,0.000119,2]
[420825427,1776592240964,-800.0,0.000119,4]
[420825428,1776592240973,-499.37579946,0.000119,2]
[420825429,1776592240983,-2368.26898107,0.000119,2]
[420825430,1776592240992,-179.8018307,0.000119,2]
[420825445,1776592243264,-386.29169916,0.00010435,2]
[420825448,1776592243279,-2086.70830084,0.00010435,2]
[420825450,1776592243289,-18473.20275313,0.000119,2]
[420825452,1776592243300,-200.0,0.00011903,2]
[420825454,1776592243310,-200.0,0.00011904,2]
[420825457,1776592243697,-200.0,0.00011904,2]
[420825458,1776592243807,-250.0,0.00011912,2]
[420825459,1776592243817,-250.0,0.00011912,2]
[420825461,1776592243827,-250.0,0.00011912,2]
[420825463,1776592243836,-200.0,0.00011912,2]
[420825464,1776592243845,-545.32863396,0.0001199,2]
[420825465,1776592243855,-300.0,0.00011999,2]
[420825466,1776592243864,-155.353,0.00011999,2]
[420825467,1776592243874,-500.0,0.00011999,2]
[420825468,1776592243883,-500.0,0.00011999,2]
[420825469,1776592243892,-540.03948315,0.00011999,2]
[420825470,1776592243902,-216.79688307,0.00011999,2]
[420825471,1776592243911,-377.22898647,0.00011999,2]
[420825482,1776592246205,-720.27582253,0.00011848,2]
[420825483,1776592246216,-122.77101353,0.00011999,2]
[420825484,1776592246226,-500.0,0.00011999,2]
[420825485,1776592246236,-429.46158774,0.00011999,2]
[420825486,1776592246246,-275.34927868,0.00011999,2]
[420825487,1776592246256,-500.0,0.00011999,2]
[420825488,1776592246267,-953.0,0.00012,5]
[420825489,1776592246277,-757.0,0.00012,5]
[420825490,1776592246287,-51891.94524512,0.00012,2]
[420825491,1776592246574,-1148.635,0.00012,2]
[420825492,1776592246627,-4703.15066986,0.00012,2]
[420825496,1776592250937,372.0,0.00032876,120]
[420825497,1776592254152,655.0,0.00032876,120]
[420825498,1776592271041,1000.0,0.00032,120]
[420825499,1776592286672,1000.0,0.00032,120]
[420825500,1776592340247,1000.0,0.00032,120]
[420825501,1776592353749,1000.0,0.00032,120]
[420825502,1776592373995,662.0,0.00032,120]
[420825510,1776592709394,150.0,0.00032876,120]
[420825511,1776592746289,250.0,0.00032877,120]
[420825513,1776592756557,250.0,0.00032877,120]
[420825516,1776592982064,500.0,0.00032192,120]
[420825517,1776592983287,156.3333,0.00032876,120]
[420825518,1776592983707,156.3333,0.00032876,120]
[420825519,1776592984134,156.3334,0.00032876,120]
[420825520,1776593018955,258.51,0.0003269,120]
[420825521,1776593059346,379.6867845,0.000328,120]
[420825536,1776593432377,-260.0,9.863e-05,2]
[420825537,1776593432386,-1677.91109789,9.89e-05,2]
[420825538,1776593432396,-203.27910775,9.904e-05,2]
[420825539,1776593432406,-1000.0,0.00010004,2]
[420825540,1776593432415,-298.93645123,0.00010434,2]
[420825541,1776593432549,-374.94758386,0.00010434,2]
[420825542,1776593432796,-526.11596491,0.00010434,2]
[420825543,1776593432806,-250.0,0.00010435,2]
[420825544,1776593432817,-163.746,0.00010435,2]
[420825545,1776593432827,-166.386,0.00010435,2]
[420825546,1776593432835,-3893.7531749,0.00010435,2]
[420825547,1776593432847,-411.52931764,0.00010435,2]
[420825560,1776593432990,-1724.71750746,0.00010435,2]
[420825562,1776593433000,-443.37959258,0.00010435,2]
[420825568,1776593433072,-2029.62040742,0.00010435,2]
[420825569,1776593433082,-518.009,0.00010435,2]
[420825570,1776593433091,-67905.82,0.00011173,2]
[420825571,1776593433101,-150.0,0.00011201,2]
[420825572,1776593433110,-1491.243,0.00011202,2]
[420825573,1776593433120,-186.276,0.00011202,2]
[420825574,1776593433129,-2780.01105461,0.000113,2]
[420825703,1776593438561,-1691.60656983,0.000113,2]
[420825704,1776593438724,-6289.73662505,0.000113,2]
[420825705,1776593438885,-580.23789574,0.000113,2]
[420825706,1776593438993,-3469.7027034,0.000113,2]
[420825742,1776593440614,-317.4891535,0.000113,2]
[420825743,1776593440832,-436.85263446,0.000113,2]
[420825750,1776593443560,-787.0,0.00010435,2]
[420825751,1776593443879,-347.79172787,0.00010435,2]
[420825757,1776593447491,-2644.20827213,0.00010435,2]
[420825758,1776593447500,-14334.53558568,0.000113,2]
[420825759,1776593447509,-151.0,0.00011397,2]
[420825760,1776593447519,-1193.03,0.000114,2]
[420825761,1776593447528,-298.25,0.000114,2]
[420825762,1776593447537,-298.25,0.000114,2]
[420825763,1776593447546,-298.25,0.000114,2]
[420825764,1776593447555,-862.83,0.000114,2]
[420825765,1776593447564,-486.47,0.000114,2]
[420825766,1776593447574,-1215.9,0.000114,2]
[420825767,1776593447583,-2281.5,0.000114,2]
[420825768,1776593447592,-1251.0,0.000114,2]
[420825769,1776593447601,-1887.69,0.000114,2]
[420825770,1776593447610,-967.46,0.000114,2]
[420825771,1776593447619,-1633.4,0.000114,2]
[420825772,1776593447628,-2018.23,0.000114,2]
[420825773,1776593447637,-880.4,0.000114,2]
[420825774,1776593447647,-2889.53,0.000114,2]
[420825775,1776593447656,-488.44,0.000114,2]
[420825776,1776593447666,-1539.71,0.000114,2]
[420825777,1776593447675,-2671.25,0.000114,2]
[420825778,1776593447684,-1126.26,0.000114,2]
[420825779,1776593447693,-826.36,0.000114,2]
[420825780,1776593447702,-2258.33,0.000114,2]
[420825781,1776593447711,-625.87,0.000114,2]
[420825782,1776593447720,-701.87793083,0.000114,2]
[420825783,1776593447732,-1280.82206917,0.000114,2]
[420825784,1776593447741,-1162.82857909,0.000114,2]
[420825785,1776593447752,-439.56142091,0.000114,2]
[420825786,1776593447762,-2008.02,0.000114,2]
[420825787,1776593447772,-1913.84,0.000114,2]
[420825788,1776593447781,-794.57857909,0.000114,2]
[420825789,1776593447796,-401.00142091,0.000114,2]
[420825790,1776593447805,-1279.33,0.000114,2]
[420825791,1776593447815,-1279.33,0.000114,2]
[420825792,1776593447825,-1279.33,0.000114,2]
[420825793,1776593447836,-1293.00857909,0.00011478,2]
[420825794,1776593765491,250.0,0.00032877,120]
[420825795,1776593777286,250.0,0.00032877,120]
[420825796,1776593925836,6032.223899,0.0003287,120]
[420825797,1776593931823,6099.999999,0.0003287,120]
[420825798,1776593995659,10000.0,0.00032877,120]
[420825799,1776594009223,10000.0,0.00032877,120]
[420825800,1776594031662,10000.0,0.00032877,120]
[420825801,1776594046684,1552.81,0.00032877,120]
[420825802,1776594362414,-260.0,9.863e-05,2]
[420825803,1776594362444,-210.92,9.9e-05,2]
[420825804,1776594362473,-171.67995488,0.00010392,2]
[420825805,1776594362501,-2281.01,0.00010416,2]
[420825806,1776594362530,-200.0,0.0001047,2]
[420825807,1776594362558,-1189.71,0.00010471,2]
[420825808,1776594362587,-150.0,0.00010492,2]
[420825809,1776594362803,-690.77013536,0.00010492,2]
[420825810,1776594362836,-509.22986464,0.00010492,2]
[420825811,1776594362864,-3529.0,0.00010493,2]
[420825812,1776594362894,-875.55027072,0.00010493,2]
[420825813,1776594362926,-172.44972928,0.00010493,2]
[420825814,1776594362958,-2473.0,0.00010493,2]
[420825815,1776594362988,-416.0,0.00010493,2]
[420825816,1776594363018,-98.11054144,0.00010493,2]
[420825817,1776594363099,-3680.88945856,0.00010493,2]
[420825818,1776594363127,-858.32108288,0.00010682,2]
[420825819,1776594363267,-921.58891712,0.00010682,2]
[420825820,1776594363298,-296.54,0.00010684,2]
[420825821,1776594363327,-150.0,0.000108,2]
[420825822,1776594363357,-150.0,0.000108,2]
[420825823,1776594363389,-150.0,0.000108,2]
[420825824,1776594363419,-150.0,0.000108,2]
[420825825,1776594363447,-150.0,0.000108,2]
[420825826,1776594363477,-1003.1201008,0.00010849,2]
[420825827,1776594363509,-370.90041676,0.00010849,2]
[420825828,1776594363537,-1315.71113064,0.00010897,2]
[420825829,1776594363660,-117.06753964,0.00010897,2]
[420825830,1776594363675,-567.22132972,0.00010897,2]
[420825831,1776594363685,-200.0,0.00011066,2]
[420825832,1776594363694,-154.3675874,0.00011072,2]
[420825833,1776594363720,-296.54,0.00011072,2]
[420825834,1776594363736,-49.0924126,0.00011072,2]
[420825835,1776594363746,-100.9075874,0.00011072,2]
[420825836,1776594363761,-150.0,0.00011072,2]
[420825837,1776594363776,-150.0,0.00011072,2]
[420825838,1776594363790,-99.0924126,0.00011072,2]
[420825839,1776594363800,-50.9075874,0.00011072,2]
[420825840,1776594363814,-150.0,0.00011072,2]
[420825841,1776594363829,-299.0924126,0.00011072,2]
[420825842,1776594363839,-181.76305584,0.00011072,2]
[420825843,1776594363849,-500.0,0.00011072,2]
[420825844,1776594363858,-22.26463236,0.00011072,2]
[420825845,1776594363881,-370.90041676,0.00011072,2]
[420825846,1776594363896,-106.83495088,0.00011072,2]
[420825847,1776594363906,-500.0,0.00011072,2]
[420825848,1776594363916,-500.0,0.00011072,2]
[420825849,1776594363925,-500.0,0.00011072,2]
[420825850,1776594363935,-393.16504912,0.00011072,2]
[420825851,1776594370953,-106.83495088,0.00011072,2]
[420825852,1776594370986,-500.0,0.00011072,2]
[420825853,1776594371021,-500.0,0.00011072,2]
[420825854,1776594371056,-500.0,0.00011072,2]
[420825855,1776594371090,-330.80740365,0.00011072,2]
[420825856,1776594371124,-500.0,0.00011072,2]
[420825857,1776594371157,-500.0,0.00011072,2]
[420825858,1776594371652,-500.0,0.00011072,2]
[420825859,1776594371686,-500.0,0.00011072,2]
[420825860,1776594371719,-500.0,0.00011072,2]
[420825861,1776594371753,-500.0,0.00011072,2]
[420825862,1776594374185,-500.0,0.00011072,2]
[420825863,1776594374227,-500.0,0.00011073,2]
[420825864,1776594374648,-124.72529094,0.00011072,2]
[420825865,1776594374673,-175.27470906,0.00011072,2]
[420825866,1776594374687,-7824.73529094,0.00011073,2]
[420825867,1776594374707,-10000.01,0.00011073,2]
[420825868,1776594374732,-10000.01,0.00011073,2]
[420825869,1776594374758,-10000.01,0.00011073,2]
[420825870,1776594374779,-10000.01,0.00011073,2]
[420825871,1776594374798,-10000.01,0.00011073,2]
[420825872,1776594374817,-10000.01,0.00011073,2]
[420825873,1776594377932,-10000.01,0.00011073,2]
[420825874,1776594378034,-10000.01,0.00011073,2]
[420825875,1776594378160,-10000.01,0.00011073,2]
[420825877,1776594524657,250.0,0.00032877,120]
[420825881,1776594631626,-200.98,8.36e-05,2]
[420825882,1776594631636,-260.0,9.863e-05,2]
[420825883,1776594631646,-210.92,9.9e-05,2]
[420825884,1776594631656,-3.452,0.00010973,2]
[420825885,1776594631668,-1652.648,0.00010973,2]
[420825886,1776594631685,-1288.8185,0.00010973,2]
[420825887,1776594631695,-195.0,0.0001102,2]
[420825888,1776594631704,-195.0,0.00011046,2]
[420825889,1776594631714,-195.0,0.00011046,2]
[420825890,1776594631726,-257.82240219,0.00011046,2]
[420825891,1776594631736,-600.0,0.00011046,2]
[420825892,1776594631745,-208.3870111,0.00011067,2]
[420825893,1776594631755,-151.0,0.0001107,2]
[420825894,1776594631765,-170.78,0.00011072,2]
[420825895,1776594631774,-300.0,0.00011072,2]
[420825896,1776594631784,-1058.0,0.00011072,2]
[420825897,1776594631794,-150.0,0.00011072,2]
[420825898,1776594631806,-300.0,0.00011072,2]
[420825899,1776594631818,-600.0,0.0001108,2]
[420825900,1776594631829,-600.0,0.0001108,2]
[420825901,1776594631839,-600.0,0.0001108,2]
[420825902,1776594631849,-300.0,0.00011087,2]
[420825903,1776594631859,-300.0,0.00011087,2]
[420825904,1776594631869,-300.12158073,0.00011087,2]
[420825905,1776594631878,-500.0,0.00011098,2]
[420825906,1776594631888,-500.0,0.00011098,2]
[420825907,1776594631897,-500.0,0.00011098,2]
[420825908,1776594631907,-500.0,0.00011098,2]
[420825909,1776594631916,-500.0,0.00011098,2]
[420825910,1776594631926,-500.0,0.00011098,2]
[420825911,1776594631936,-500.0,0.00011098,2]
[420825912,1776594631945,-500.0,0.00011098,2]
[420825913,1776594631956,-500.0,0.00011098,2]
[420825914,1776594631966,-500.0,0.00011098,2]
[420825915,1776594631975,-500.0,0.00011098,2]
[420825916,1776594631985,-500.0,0.00011098,2]
[420825917,1776594631995,-500.0,0.00011098,2]
[420825918,1776594632005,-500.0,0.00011098,2]
[420825919,1776594632015,-500.0,0.00011098,2]
[420825920,1776594632024,-500.0,0.00011098,2]
[420825922,1776594632034,-500.0,0.00011098,2]
[420825924,1776594632043,-500.0,0.00011098,2]
[420825927,1776594632053,-500.0,0.00011098,2]
[420825929,1776594632063,-500.0,0.00011098,2]
[420825931,1776594632073,-500.0,0.00011098,2]
[420825933,1776594632083,-500.0,0.00011098,2]
[420825935,1776594632092,-500.0,0.00011098,2]
[420825937,1776594632102,-500.0,0.00011098,2]
[420825939,1776594632111,-500.0,0.00011098,2]
[420825941,1776594632121,-500.0,0.00011098,2]
[420825943,1776594632130,-482.76225152,0.00011098,2]
[420825945,1776594632140,-500.0,0.00011098,2]
[420825946,1776594632149,-500.0,0.00011098,2]
[420825947,1776594632159,-500.0,0.00011098,2]
[420825948,1776594632168,-500.0,0.00011098,2]
[420825949,1776594632177,-500.0,0.00011098,2]
[420825950,1776594632187,-500.0,0.00011098,2]
[420825951,1776594632197,-500.0,0.00011098,2]
[420825952,1776594632206,-500.0,0.00011098,2]
[420825953,1776594632216,-500.0,0.00011098,2]
[420825954,1776594632227,-500.0,0.00011098,2]
[420825955,1776594632236,-500.0,0.00011098,2]
[420825956,1776594632246,-500.0,0.00011098,2]
[420825957,1776594632256,-500.0,0.00011098,2]
[420825958,1776594632266,-500.0,0.00011098,2]
[420825959,1776594632275,-500.0,0.00011098,2]
[420825960,1776594632285,-500.0,0.00011098,2]
[420825961,1776594632294,-500.0,0.00011098,2]
[420825962,1776594632303,-500.0,0.00011098,2]
[420825963,1776594632313,-500.0,0.00011098,2]
[420825964,1776594632325,-500.0,0.00011098,2]
[420825965,1776594632335,-500.0,0.00011098,2]
[420825966,1776594632344,-500.0,0.00011098,2]
[420825967,1776594632354,-500.0,0.00011098,2]
[420825968,1776594632364,-500.0,0.00011098,2]
[420825969,1776594632373,-500.0,0.00011098,2]
[420825970,1776594632383,-500.0,0.00011098,2]
[420825971,1776594632392,-500.0,0.00011098,2]
[420825972,1776594632402,-500.0,0.00011098,2]
[420825973,1776594632422,-500.0,0.00011098,2]
[420825974,1776594632432,-500.0,0.00011098,2]
[420825975,1776594632441,-500.0,0.00011098,2]
[420825976,1776594632451,-500.0,0.00011098,2]
[420825977,1776594632460,-500.0,0.00011098,2]
[420825978,1776594632470,-500.0,0.00011098,2]
[420825979,1776594632481,-500.0,0.00011098,2]
[420825980,1776594632493,-500.0,0.00011098,2]
[420825981,1776594632502,-500.0,0.00011098,2]
[420825982,1776594632512,-500.0,0.00011098,2]
[420825983,1776594632521,-500.0,0.00011098,2]
[420825984,1776594632531,-500.0,0.00011098,2]
[420825985,1776594632540,-500.0,0.00011098,2]
[420825986,1776594632550,-500.0,0.00011098,2]
[420825987,1776594632560,-500.0,0.00011098,2]
[420825988,1776594632569,-598.27622515,0.00011098,2]
[420825989,1776594632579,-500.0,0.00011098,2]
[420825990,1776594632588,-500.0,0.00011098,2]
[420825991,1776594632598,-500.0,0.00011098,2]
[420825992,1776594632607,-500.0,0.00011098,2]
[420825993,1776594632616,-500.0,0.00011098,2]
[420825994,1776594632626,-500.0,0.00011098,2]
[420825995,1776594632635,-500.0,0.00011098,2]
[420825996,1776594632645,-500.0,0.00011098,2]
[420825997,1776594632655,-650.0,0.00011098,2]
[420825998,1776594632664,-226.88084095,0.00011098,2]
[420825999,1776594632674,-1000.0,0.0001112,2]
[420826000,1776594632683,-238.01618357,0.0001112,2]
[420826001,1776594632700,-761.98381643,0.0001112,2]
[420826002,1776594632709,-89.30028426,0.0001112,2]
[420826003,1776594632729,-717.79063966,0.0001112,2]
[420826004,1776594632749,-192.90907608,0.0001112,2]
[420826005,1776594632758,-519.84092892,0.0001112,2]
[420826006,1776594632770,-480.15907108,0.0001112,2]
[420826007,1776594632780,-347.03290411,0.0001112,2]
[420826008,1776594632791,-487.38503545,0.0001112,2]
[420826014,1776594637903,-165.58206044,0.0001112,2]
[420826015,1776594637913,-404.77755156,0.0001112,2]
[420826016,1776594638070,-327.18968074,0.0001112,2]
[420826017,1776594638081,-400.0,0.00011151,7]
[420826018,1776594638091,-188.23,0.00011151,7]
[420826019,1776594638101,-526.73307487,0.00011224,2]
[420826020,1776594638111,-83.90066164,0.00011236,7]
[420826021,1776594638200,-245.49933836,0.00011236,7]
[420826022,1776594638210,-657.0,0.00011293,5]
[420826023,1776594638220,-170.78,0.00011346,2]
[420826024,1776594638229,-903.87776708,0.000114,2]
[420826042,1776594639875,-841.11611734,0.000114,2]
[420826043,1776594641853,-1515.4,0.000114,2]
[420826056,1776594645815,-236.02450148,0.000114,2]
[420826057,1776594645830,-1565.806,0.000114,2]
[420826058,1776594645842,-186.276,0.000114,2]
[420826059,1776594645852,-1680.64,0.00011507,2]
[420826060,1776594645861,-215.0,0.0001151,2]
[420826061,1776594645871,-1238.35960991,0.00011542,2]
[420826099,1776594758479,350.00000097,0.00027397,120]
[420826101,1776594817320,255.58,0.0003269,120]
[420826104,1776594867972,-2473.0,0.0001056,2]
[420826105,1776594868007,-416.0,0.0001056,2]
[420826106,1776594868437,-150.0,0.00010959,2]
[420826107,1776594868475,-300.0,0.00010972,2]
[420826108,1776594868633,-3322.01,0.00010973,2]
[420826109,1776594868664,-10000.01,0.00010973,2]
[420826110,1776594868679,-10000.01,0.00010973,2]
[420826111,1776594868694,-10000.01,0.00010973,2]
[420826112,1776594868737,-2031.8938,0.00010973,2]
[420826113,1776594868789,-5936.2224,0.00010973,2]
[420826114,1776594868804,-10000.01,0.00010973,2]
[420826115,1776594868846,-10000.01,0.00010973,2]
[420826116,1776594868979,-10000.01,0.00010973,2]
[420826117,1776594869072,-10000.01,0.00010973,2]
[420826118,1776594869198,-10000.01,0.00010973,2]
[420826119,1776594874123,-10000.01,0.00010973,2]
[420826120,1776594875319,161.0,0.00016438,30]
[420826121,1776594886484,210.95,0.000328,120]
[420826122,1776595011967,500.0,0.00032876,120]
[420826123,1776595012187,500.0,0.00032876,120]
[420826124,1776595012466,500.0,0.00032876,120]
[420826125,1776595012692,500.0,0.00032876,120]
[420826126,1776595012932,500.0,0.00032876,120]
[420826127,1776595013168,500.0,0.00032876,120]
[420826128,1776595013407,500.0,0.00032876,120]
[420826129,1776595013629,588.32,0.00032876,120]
[420826131,1776595059298,157.0,0.00016226,30]
[420826132,1776595062997,162.97914855,0.00016226,30]
[420826133,1776595103465,158.0,0.000325,120]
[420826135,1776595357273,-260.0,9.863e-05,2]
[420826136,1776595357307,-195.09,0.00010037,2]
[420826137,1776595357337,-2473.0,0.0001056,2]
[420826138,1776595357366,-416.0,0.0001056,2]
[420826139,1776595357469,-3311.83,0.0001056,2]
[420826140,1776595357539,-99.759,0.0001056,2]
[420826141,1776595357571,-1600.0,0.00010764,2]
[420826142,1776595357601,-1500.0,0.00010777,2]
[420826143,1776595357632,-250.0,0.00010849,2]
[420826144,1776595357662,-200.0,0.00010866,2]
[420826145,1776595357693,-151.0,0.00010866,2]
[420826146,1776595357723,-189.78674529,0.00010866,2]
[420826147,1776595357753,-500.0,0.00010866,2]
[420826148,1776595357783,-500.0,0.00010866,2]
[420826149,1776595357894,-500.0,0.00010866,2]
[420826150,1776595357925,-500.0,0.00010866,2]
[420826151,1776595357956,-381.2686437,0.00010866,2]
[420826152,1776595357986,-150.0,0.00010871,2]